bitfinex/quotes_BTCUSD_20250212
["timestamp","ask_amount","ask_price","bid_price","bid_amount"]
[1739392206566,0.20349425,97570.0,97569.0,0.0001321]
[1739392206799,0.21253098,97570.0,97569.0,0.0001321]
[1739392207570,0.46503463,97570.0,97569.0,0.0001321]
[1739392207837,0.56353463,97570.0,97569.0,0.0001321]
[1739392207955,0.61073463,97570.0,97569.0,0.0001321]
[1739392209363,0.380649,97561.0,97560.0,0.00022386]
[1739392209490,0.48315265,97561.0,97560.0,0.00028719]
[1739392210878,0.54194863,97561.0,97560.0,0.00028719]
[1739392212970,0.54194863,97561.0,97560.0,0.00019566]
[1739392213749,0.5547239,97561.0,97560.0,0.00019566]
[1739392213957,0.5777239,97561.0,97560.0,0.00019566]
[1739392214160,0.61658717,97561.0,97560.0,0.00019566]
[1739392214373,0.59358717,97561.0,97560.0,0.00019566]
[1739392215439,0.54382792,97561.0,97560.0,0.00019566]
[1739392216017,0.54382792,97561.0,97532.0,0.0795]
[1739392216018,0.14078118,97560.0,97532.0,0.0795]
[1739392216226,0.14078118,97560.0,97543.0,0.205037]
[1739392216491,0.15,97559.0,97543.0,0.205037]
[1739392216611,0.15,97554.0,97533.0,0.35326065]
[1739392216800,0.15,97554.0,97541.0,0.15378]
[1739392217212,0.15,97554.0,97534.0,0.153792]
[1739392217213,0.153772,97547.0,97534.0,0.153792]
[1739392217408,0.14078118,97544.0,97527.0,0.205069]
[1739392217608,0.14078118,97537.0,97528.0,0.10250365]
[1739392217811,0.14078118,97537.0,97524.0,0.00022386]
[1739392218653,0.153794,97533.0,97524.0,0.00022386]
[1739392219455,0.153796,97532.0,97524.0,0.00022386]
[1739392220096,0.00906593,97532.0,97524.0,0.00022386]
[1739392220362,0.04972414,97531.0,97524.0,0.00022386]
[1739392220850,0.04972414,97531.0,97524.0,0.15403186]
[1739392221051,0.04972414,97531.0,97529.0,0.1538]
[1739392221193,0.04972414,97531.0,97524.0,0.00022386]
[1739392221395,0.00906593,97530.0,97524.0,0.00022386]
[1739392221599,0.05879007,97530.0,97524.0,0.0006645]
[1739392222950,0.0191237,97529.0,97524.0,0.0006645]
[1739392223403,0.153803,97528.0,97524.0,0.0006645]
[1739392223575,0.0191237,97529.0,97524.0,0.0006645]
[1739392223785,0.0191237,97527.0,97524.0,0.0006645]
[1739392224512,0.153806,97525.0,97524.0,0.0006645]
[1739392224734,0.42300597,97525.0,97524.0,0.0006645]
[1739392224938,0.385106,97525.0,97524.0,0.0006645]
[1739392225526,0.303806,97525.0,97524.0,0.0106645]
[1739392225929,0.3229297,97525.0,97524.0,0.0106645]
[1739392226747,0.303806,97525.0,97524.0,0.0006645]
[1739392226941,0.305806,97525.0,97524.0,0.0006645]
[1739392227210,0.152,97525.0,97524.0,0.0006645]
[1739392227402,0.15,97525.0,97524.0,0.0006645]
[1739392227578,0.304806,97525.0,97524.0,0.0006645]
[1739392228120,0.303806,97525.0,97524.0,0.0006645]
[1739392228353,0.303806,97525.0,97524.0,0.1544725]
[1739392228354,0.001,97525.0,97524.0,0.1544725]
[1739392229479,0.001,97525.0,97524.0,0.0006645]
[1739392230496,0.153805,97526.0,97524.0,0.0006645]
[1739392230695,0.15,97539.0,97524.0,0.0006645]
[1739392230696,0.001,97525.0,97524.0,0.0006645]
[1739392230953,0.154806,97525.0,97524.0,0.0006645]
[1739392231085,0.153806,97525.0,97524.0,0.0006645]
[1739392231489,0.154806,97525.0,97524.0,0.0006645]
[1739392233871,0.304806,97525.0,97524.0,0.0006645]
[1739392234078,0.36266999,97525.0,97524.0,0.0006645]
[1739392234255,0.304806,97525.0,97524.0,0.0006645]
[1739392234428,0.151,97525.0,97524.0,0.0006645]
[1739392234606,0.304806,97525.0,97524.0,0.0006645]
[1739392234786,0.303806,97525.0,97524.0,0.0006645]
[1739392235187,0.311806,97525.0,97524.0,0.0006645]
[1739392235617,0.303806,97525.0,97524.0,0.0006645]
[1739392235809,0.15,97525.0,97524.0,0.0006645]
[1739392236254,0.303806,97525.0,97524.0,0.0006645]
[1739392236452,0.305806,97525.0,97524.0,0.0006645]
[1739392236645,0.303806,97525.0,97524.0,0.0006645]
[1739392239101,0.307806,97525.0,97524.0,0.0006645]
[1739392240766,0.428306,97525.0,97524.0,0.0006645]
[1739392240966,0.424306,97525.0,97524.0,0.0006645]
[1739392241166,0.431306,97525.0,97524.0,0.0006645]
[1739392241755,0.424306,97525.0,97524.0,0.0006645]
[1739392241977,0.433306,97525.0,97524.0,0.0006645]
[1739392242186,0.53580965,97525.0,97524.0,0.0006645]
[1739392242505,0.53680965,97525.0,97524.0,0.0006645]
[1739392243107,0.53880965,97525.0,97524.0,0.0006645]
[1739392243711,0.436306,97525.0,97524.0,0.0006645]
[1739392244474,0.53880965,97525.0,97524.0,0.0006645]
[1739392245089,0.52980965,97525.0,97524.0,0.0006645]
[1739392245294,0.59127152,97525.0,97524.0,0.0006645]
[1739392245616,0.59427152,97525.0,97524.0,0.0006645]
[1739392245829,0.69677517,97525.0,97524.0,0.0006645]
[1739392246456,0.6653133,97525.0,97524.0,0.0006645]
[1739392247098,0.3515073,97525.0,97524.0,0.0006645]
[1739392247303,0.5153133,97525.0,97524.0,0.0006645]
[1739392247458,0.41280965,97525.0,97524.0,0.0006645]
[1739392249092,0.56280965,97525.0,97524.0,0.0006645]
[1739392249702,0.53980965,97525.0,97524.0,0.0006645]
[1739392251024,0.14078118,97510.0,97489.0,0.20515]
[1739392251201,0.153847,97500.0,97491.0,0.10250365]
[1739392251435,0.205109,97509.0,97491.0,0.10250365]
[1739392251638,0.153852,97496.0,97491.0,0.10250365]
[1739392251849,0.153854,97495.0,97491.0,0.10250365]
[1739392252262,0.153848,97499.0,97491.0,0.10250365]
[1739392252874,0.001,97496.0,97491.0,0.10250365]
[1739392253075,0.153842,97503.0,97491.0,0.10263594]
[1739392253282,0.153842,97503.0,97493.0,0.205142]
[1739392253436,0.001,97499.0,97491.0,0.10263594]
[1739392253635,0.001,97499.0,97496.0,0.153851]
[1739392254789,0.153835,97507.0,97496.0,0.153851]
[1739392254989,0.001,97499.0,97496.0,0.153851]
[1739392255341,0.001,97499.0,97491.0,0.10263594]
[1739392256862,0.153846,97500.0,97491.0,0.10263594]
[1739392257105,0.205116,97506.0,97494.0,0.153854]
[1739392257308,0.153841,97504.0,97491.0,0.10263594]
[1739392257456,0.14078118,97510.0,97491.0,0.10263594]
[1739392257661,0.001,97499.0,97493.0,0.153856]
[1739392258058,0.153843,97502.0,97493.0,0.153856]
[1739392258271,0.001,97499.0,97493.0,0.153856]
[1739392258474,0.153837,97506.0,97497.0,0.15385]
[1739392259042,0.001,97499.0,97496.0,0.153851]
[1739392259582,0.15384,97504.0,97495.0,0.153853]
[1739392259783,0.15384,97504.0,97496.0,0.153852]
[1739392259988,0.153838,97505.0,97496.0,0.153851]
[1739392260499,0.153838,97505.0,97497.0,0.15385]
[1739392260697,0.001,97506.0,97491.0,0.10263594]
[1739392261070,0.16251841,97509.0,97491.0,0.00013229]
[1739392261307,0.234558,97492.0,97491.0,0.00013229]
[1739392263826,0.234558,97492.0,97491.0,0.00023909]
[1739392264634,0.24690303,97492.0,97491.0,0.00023909]
[1739392265912,0.25090303,97492.0,97491.0,0.00023909]
[1739392266873,0.28630516,97492.0,97491.0,0.00023909]
[1739392267259,0.28230516,97492.0,97491.0,0.00023909]
[1739392267630,0.28630516,97492.0,97491.0,0.00023909]
[1739392268378,0.25090303,97492.0,97491.0,0.00023909]
[1739392268576,0.16620303,97492.0,97491.0,0.00023909]
[1739392268714,0.17820303,97492.0,97491.0,0.00023909]
[1739392268932,0.18120303,97492.0,97491.0,0.00023909]
[1739392269132,0.16920303,97492.0,97491.0,0.00023909]
[1739392269330,0.19815739,97492.0,97491.0,0.00023909]
[1739392269534,0.16720303,97492.0,97491.0,0.00023909]
[1739392270518,0.17320303,97492.0,97491.0,0.00023909]
[1739392273397,0.17220303,97492.0,97491.0,0.00023909]
[1739392273794,0.16620303,97492.0,97491.0,0.00023909]
[1739392273988,0.17820303,97492.0,97491.0,0.00023909]
[1739392274307,0.24696406,97492.0,97491.0,0.00023909]
[1739392274502,0.23496406,97492.0,97491.0,0.00023909]
[1739392274689,0.24696406,97492.0,97491.0,0.00023909]
[1739392274884,0.24996406,97492.0,97491.0,0.00023909]
[1739392275409,0.25296406,97492.0,97491.0,0.00023909]
[1739392275613,0.18420303,97492.0,97491.0,0.00023909]
[1739392277364,0.17220303,97492.0,97491.0,0.00023909]
[1739392277568,0.31630303,97492.0,97491.0,0.00023909]
[1739392277766,0.31030303,97492.0,97491.0,0.00023909]
[1739392278201,0.30030303,97492.0,97491.0,0.00023909]
[1739392278380,0.31430303,97492.0,97491.0,0.00023909]
[1739392278584,0.34466713,97492.0,97491.0,0.00023909]
[1739392280088,0.31430303,97492.0,97491.0,0.00023909]
[1739392287054,0.41680668,97492.0,97491.0,0.00023909]
[1739392287255,0.43980668,97492.0,97491.0,0.00023909]
[1739392287949,0.44003034,97492.0,97491.0,0.00023909]
[1739392288785,0.59003034,97492.0,97491.0,0.00023909]
[1739392290603,0.62154898,97492.0,97491.0,0.00023909]
[1739392290937,0.153928,97448.0,97440.0,0.06956978]
[1739392291108,0.0809,97465.0,97440.0,0.22350978]
[1739392291109,0.14078118,97460.0,97440.0,0.22350978]
[1739392291282,0.14078118,97460.0,97441.0,0.153938]
[1739392291283,0.153928,97449.0,97441.0,0.153938]
[1739392291493,0.205205,97464.0,97440.0,0.06956978]
[1739392291696,0.205195,97468.0,97441.0,0.10250365]
[1739392291902,0.153916,97456.0,97441.0,0.10250365]
[1739392292095,0.153917,97455.0,97448.0,0.153927]
[1739392292503,0.205224,97455.0,97445.0,0.153931]
[1739392292711,0.15392,97453.0,97445.0,0.153931]
[1739392292892,0.15392,97453.0,97445.0,0.153932]
[1739392293086,0.153922,97452.0,97445.0,0.153932]
[1739392293309,0.206224,97455.0,97445.0,0.153932]
[1739392293513,0.001,97455.0,97441.0,0.30775465]
[1739392293672,0.001,97455.0,97448.0,0.153927]
[1739392293870,0.001,97453.0,97448.0,0.153927]
[1739392295049,0.153911,97459.0,97449.0,0.153925]
[1739392295603,0.01188422,97462.0,97449.0,0.153925]
[1739392295796,0.153915,97457.0,97447.0,0.153929]
[1739392296053,0.153916,97456.0,97447.0,0.153929]
[1739392296263,0.153923,97452.0,97434.0,0.0765]
[1739392296400,0.153923,97452.0,97441.0,0.153938]
[1739392296756,0.14078118,97451.0,97428.0,0.1238]
[1739392297056,0.0498,97456.0,97442.0,0.10250365]
[1739392297057,0.205229,97452.0,97442.0,0.10250365]
[1739392297265,0.16271841,97468.0,97443.0,0.0765]
[1739392297466,0.14078118,97460.0,97444.0,0.10250365]
[1739392297641,0.0769,97475.0,97448.0,0.0452]
[1739392297840,0.00013159,97474.0,97450.0,0.205233]
[1739392298064,0.15013159,97474.0,97455.0,0.153915]
[1739392298226,0.153901,97465.0,97456.0,0.10250365]
[1739392298407,0.205197,97468.0,97456.0,0.10250365]
[1739392298608,0.153901,97465.0,97456.0,0.10250365]
[1739392298879,0.00013159,97474.0,97461.0,0.153906]
[1739392299077,0.00013159,97474.0,97456.0,0.10250365]
[1739392299078,0.15401859,97474.0,97457.0,0.0789]
[1739392299278,0.006,97465.0,97462.0,0.153905]
[1739392299494,0.006,97465.0,97463.0,0.10250365]
[1739392299720,0.00013159,97474.0,97473.0,0.153888]
[1739392300193,0.01313159,97474.0,97473.0,0.153888]
[1739392301074,0.01613159,97474.0,97473.0,0.153888]
[1739392301489,0.01313159,97474.0,97473.0,0.153888]
[1739392301838,0.00013159,97474.0,97473.0,0.153888]
[1739392302033,0.00513159,97474.0,97469.0,0.153893]
[1739392302176,0.00513159,97474.0,97471.0,0.10250365]
[1739392302388,0.00013159,97474.0,97449.0,0.15]
[1739392302729,0.36020259,97474.0,97473.0,0.001]
[1739392302932,0.15601859,97474.0,97473.0,0.001]
[1739392303343,0.00113159,97474.0,97465.0,0.153901]
[1739392303701,0.00113159,97474.0,97466.0,0.153899]
[1739392304221,0.00013159,97474.0,97466.0,0.153899]
[1739392304600,0.00013159,97474.0,97466.0,0.205199]
[1739392304951,0.00013159,97474.0,97470.0,0.153891]
[1739392305156,0.00013159,97474.0,97466.0,0.153898]
[1739392305359,0.00013159,97474.0,97467.0,0.153898]
[1739392305564,0.00213159,97474.0,97459.0,0.205214]
[1739392305702,0.1539,97466.0,97458.0,0.10250365]
[1739392305887,0.14078118,97470.0,97456.0,0.153914]
[1739392305888,0.205197,97468.0,97456.0,0.153914]
[1739392306096,0.205197,97468.0,97456.0,0.25641765]
[1739392306297,0.153902,97465.0,97456.0,0.10250365]
[1739392306712,0.14078118,97470.0,97456.0,0.10250365]
[1739392306713,0.153904,97463.0,97456.0,0.10250365]
[1739392307525,0.205193,97469.0,97456.0,0.10250365]
[1739392307726,0.15389,97472.0,97463.0,0.153904]
[1739392308154,0.15389,97472.0,97456.0,0.10350365]
[1739392308155,0.001,97468.0,97456.0,0.10350365]
[1739392308575,0.205198,97467.0,97456.0,0.10350365]
[1739392308788,0.153904,97463.0,97456.0,0.25741865]
[1739392308999,0.153899,97466.0,97459.0,0.15391]
[1739392309353,0.205197,97467.0,97457.0,0.153912]
[1739392309520,0.003,97472.0,97456.0,0.10250365]
[1739392309694,0.153901,97466.0,97459.0,0.15391]
[1739392310623,0.153901,97465.0,97459.0,0.15391]
[1739392310798,0.205195,97468.0,97459.0,0.15391]
[1739392311228,0.205195,97468.0,97459.0,0.15491]
[1739392311742,0.153899,97466.0,97459.0,0.15391]
[1739392311920,0.153899,97466.0,97457.0,0.205218]
[1739392312098,0.153899,97466.0,97458.0,0.153912]
[1739392312302,0.1539,97466.0,97458.0,0.205216]
[1739392312547,0.1539,97466.0,97460.0,0.153908]
[1739392312972,0.153898,97467.0,97461.0,0.153907]
[1739392313172,0.205195,97468.0,97458.0,0.205216]
[1739392313375,0.205195,97468.0,97460.0,0.153909]
[1739392313607,0.153897,97468.0,97460.0,0.153909]
[1739392314070,0.01215255,97474.0,97456.0,0.10261025]
[1739392314212,0.153891,97471.0,97463.0,0.153904]
[1739392314415,0.01215255,97474.0,97459.0,0.001]
[1739392314596,0.00013159,97474.0,97467.0,0.153897]
[1739392314800,0.15401959,97474.0,97465.0,0.1539]
[1739392315200,0.00013159,97474.0,97465.0,0.1539]
[1739392315409,0.153888,97473.0,97465.0,0.1539]
[1739392315993,0.00513159,97474.0,97468.0,0.153895]
[1739392316565,0.00513159,97474.0,97463.0,0.205205]
[1739392316866,0.15389,97473.0,97465.0,0.153901]
[1739392316997,0.15389,97472.0,97465.0,0.153901]
[1739392317816,0.15389,97472.0,97464.0,0.153902]
[1739392318042,0.004,97473.0,97463.0,0.205205]
[1739392318262,0.15401959,97474.0,97466.0,0.153899]
[1739392318433,0.003,97472.0,97468.0,0.153895]
[1739392318640,0.003,97472.0,97467.0,0.153897]
[1739392319066,0.205187,97472.0,97463.0,0.153903]
[1739392319270,0.153894,97470.0,97463.0,0.153903]
[1739392319645,0.004,97473.0,97464.0,0.153902]
[1739392320007,0.153891,97472.0,97465.0,0.153901]
[1739392320135,0.15789,97473.0,97466.0,0.153898]
[1739392320335,0.15389,97472.0,97466.0,0.153898]
[1739392320535,0.153893,97471.0,97465.0,0.153901]
[1739392320934,0.00013159,97474.0,97464.0,0.205203]
[1739392321196,0.00013159,97474.0,97468.0,0.153896]
[1739392321442,0.003,97472.0,97468.0,0.153896]
[1739392321608,0.153893,97470.0,97463.0,0.153904]
[1739392322122,0.153892,97471.0,97464.0,0.153901]
[1739392322314,0.153895,97469.0,97464.0,0.153901]
[1739392323428,0.002,97470.0,97459.0,0.205213]
[1739392323634,0.153901,97466.0,97460.0,0.153908]
[1739392323845,0.153901,97465.0,97460.0,0.153908]
[1739392324164,0.00013159,97474.0,97457.0,0.205217]
[1739392324369,0.00013159,97474.0,97456.0,0.0001066]
[1739392324370,0.14078118,97470.0,97456.0,0.0001066]
[1739392324545,0.153914,97457.0,97456.0,0.0001066]
[1739392325189,0.198914,97457.0,97456.0,0.0001066]
[1739392326032,0.21070535,97457.0,97456.0,0.0001066]
[1739392327674,0.21170535,97457.0,97456.0,0.0001066]
[1739392328197,0.21070535,97457.0,97456.0,0.0001066]
[1739392328378,0.21470535,97457.0,97456.0,0.0001066]
[1739392334979,0.202914,97457.0,97456.0,0.0001066]
[1739392336630,0.004,97457.0,97456.0,0.0001066]
[1739392336792,0.004,97457.0,97456.0,0.1540216]
[1739392337197,0.004,97457.0,97456.0,0.25755129]
[1739392337403,0.004,97457.0,97456.0,0.33282525]
[1739392337580,0.00022387,97473.0,97472.0,0.15389]
[1739392337938,0.00022387,97473.0,97472.0,0.15189]
[1739392340067,0.00022387,97473.0,97472.0,0.25541951]
[1739392340273,0.00222387,97473.0,97472.0,0.33349365]
[1739392340896,0.00222387,97473.0,97472.0,0.34562797]
[1739392341237,0.00122387,97473.0,97472.0,0.34262797]
[1739392341443,0.00022387,97473.0,97472.0,0.34562797]
[1739392341656,0.00322387,97473.0,97472.0,0.25739365]
[1739392341849,0.00322387,97473.0,97472.0,0.10550365]
[1739392342056,0.15711187,97473.0,97472.0,0.003]
[1739392343275,0.15611187,97473.0,97472.0,0.003]
[1739392343479,0.205202,97465.0,97452.0,0.153921]
[1739392344135,0.153911,97459.0,97452.0,0.153921]
[1739392344332,0.14078118,97470.0,97452.0,0.205227]
[1739392344537,0.153909,97460.0,97453.0,0.153919]
[1739392344736,0.205207,97463.0,97448.0,0.205237]
[1739392344737,0.153914,97457.0,97448.0,0.205237]
[1739392344939,0.153914,97457.0,97445.0,0.205243]
[1739392345342,0.153914,97457.0,97443.0,0.0001066]
[1739392345343,0.153914,97457.0,97456.0,0.0121066]
[1739392345767,0.26614963,97457.0,97456.0,0.0121066]
[1739392346340,0.203414,97457.0,97456.0,0.0121066]
[1739392346586,0.203414,97457.0,97456.0,0.0001066]
[1739392346587,0.36537693,97457.0,97456.0,0.0001066]
[1739392346933,0.36637693,97457.0,97456.0,0.0111066]
[1739392347130,0.49188058,97457.0,97456.0,0.0111066]
[1739392347777,0.51360249,97457.0,97456.0,0.0111066]
[1739392347977,0.51260249,97457.0,97456.0,0.0001066]
[1739392348198,0.52560249,97457.0,97456.0,0.0011066]
[1739392348344,0.52460249,97457.0,97456.0,0.0011066]
[1739392348912,0.52760249,97457.0,97456.0,0.0011066]
[1739392350468,0.62903514,97457.0,97456.0,0.0011066]
[1739392350782,0.62903514,97457.0,97443.0,0.0001066]
[1739392350982,0.14078118,97430.0,97403.0,0.205332]
[1739392351187,0.205293,97422.0,97406.0,0.205324]
[1739392351442,0.153976,97418.0,97405.0,0.205328]
[1739392351641,0.153979,97416.0,97404.0,0.10250365]
[1739392351795,0.153979,97416.0,97409.0,0.153989]
[1739392352197,8.542e-05,97416.0,97404.0,0.10250365]
[1739392352758,8.542e-05,97416.0,97411.0,0.153986]
[1739392352897,8.542e-05,97416.0,97404.0,0.10250365]
[1739392353100,8.542e-05,97416.0,97414.0,0.153981]
[1739392353969,0.00108542,97416.0,97415.0,0.15398]
[1739392354203,0.00108542,97416.0,97411.0,0.205314]
[1739392354394,8.542e-05,97416.0,97412.0,0.153985]
[1739392354777,8.542e-05,97416.0,97404.0,0.10250365]
[1739392354983,0.00108542,97416.0,97413.0,0.153983]
[1739392355183,0.00108542,97416.0,97414.0,0.153981]
[1739392356051,0.00108542,97416.0,97415.0,0.15398]
[1739392356394,8.542e-05,97416.0,97415.0,0.15398]
[1739392356615,0.00108542,97416.0,97404.0,0.10250365]
[1739392356867,0.00108542,97416.0,97405.0,0.205328]
[1739392357076,8.542e-05,97416.0,97410.0,0.153987]
[1739392357331,8.542e-05,97416.0,97405.0,0.205328]
[1739392357570,0.00108542,97416.0,97414.0,0.153981]
[1739392357816,0.00108542,97416.0,97404.0,0.10250365]
[1739392358074,8.542e-05,97416.0,97404.0,0.10250365]
[1739392358347,0.00108542,97416.0,97404.0,0.10250365]
[1739392358847,0.00108542,97416.0,97414.0,0.153981]
[1739392359396,0.00108542,97416.0,97411.0,0.205313]
[1739392359588,8.542e-05,97416.0,97411.0,0.205313]
[1739392359844,0.15398,97415.0,97409.0,0.153989]
[1739392360063,0.153983,97413.0,97408.0,0.205321]
[1739392360309,0.20539042,97416.0,97404.0,0.10250365]
[1739392360552,0.00108542,97416.0,97407.0,0.153992]
[1739392360785,0.153984,97413.0,97407.0,0.153992]
[1739392361032,8.542e-05,97416.0,97408.0,0.153991]
[1739392361278,0.153987,97411.0,97405.0,0.153994]
[1739392361521,0.153987,97411.0,97406.0,0.153994]
[1739392361773,0.206312,97413.0,97404.0,0.10250365]
[1739392361774,0.001,97413.0,97404.0,0.10250365]
[1739392361992,0.153989,97409.0,97404.0,0.25650065]
[1739392362195,0.205313,97412.0,97402.0,0.154069]
[1739392362472,0.001,97413.0,97404.0,0.0001066]
[1739392362473,0.153996,97405.0,97404.0,0.0001066]
[1739392362829,0.205311,97413.0,97404.0,0.0001066]
[1739392363032,0.153985,97413.0,97407.0,0.153991]
[1739392363241,0.205307,97415.0,97405.0,0.153995]
[1739392363498,8.542e-05,97416.0,97407.0,0.153992]
[1739392363666,0.153985,97412.0,97405.0,0.0002831]
[1739392364010,8.542e-05,97416.0,97405.0,0.0002831]
[1739392364011,8.542e-05,97416.0,97413.0,0.153982]
[1739392364219,8.542e-05,97416.0,97405.0,0.0002831]
[1739392364444,0.001,97415.0,97411.0,0.153986]
[1739392364619,0.001,97415.0,97412.0,0.153985]
[1739392364765,0.001,97415.0,97413.0,0.153982]
[1739392365409,0.001,97415.0,97413.0,0.1542651]
[1739392365593,8.542e-05,97416.0,97413.0,0.1542651]
[1739392365994,0.00208542,97416.0,97413.0,0.1542651]
[1739392366515,0.00208542,97416.0,97415.0,0.15398]
[1739392367505,8.542e-05,97416.0,97415.0,0.25676675]
[1739392368832,0.00208542,97416.0,97415.0,0.25676675]
[1739392369236,8.542e-05,97416.0,97415.0,0.25676675]
[1739392370063,0.00108542,97416.0,97415.0,0.25676675]
[1739392370707,0.00108542,97416.0,97415.0,0.0002831]
[1739392371266,0.15506342,97416.0,97415.0,0.0002831]
[1739392372088,0.15406342,97416.0,97415.0,0.0002831]
[1739392372451,0.15606342,97416.0,97415.0,0.0002831]
[1739392373077,0.20456342,97416.0,97415.0,0.0002831]
[1739392376024,0.20478729,97416.0,97415.0,0.0002831]
[1739392377416,0.38519094,97416.0,97415.0,0.0002831]
[1739392377620,0.28268729,97416.0,97415.0,0.0002831]
[1739392378039,0.15628729,97416.0,97415.0,0.0002831]
[1739392378245,0.00230929,97416.0,97415.0,0.1542631]
[1739392379427,0.00030929,97416.0,97415.0,0.1542631]
[1739392379586,0.00130929,97416.0,97415.0,0.1542631]
[1739392382301,0.00130929,97416.0,97415.0,0.25676675]
[1739392382952,0.00130929,97416.0,97415.0,0.45236675]
[1739392383342,0.00030929,97416.0,97415.0,0.45236675]
[1739392383497,0.00130929,97416.0,97415.0,0.45236675]
[1739392384525,0.00230929,97416.0,97415.0,0.45236675]
[1739392384856,0.00130929,97416.0,97415.0,0.52886675]
[1739392385029,0.00130929,97416.0,97415.0,0.55186675]
[1739392385235,0.00330929,97416.0,97415.0,0.55186675]
[1739392385636,0.00030929,97416.0,97415.0,0.55186675]
[1739392385813,0.00130929,97416.0,97415.0,0.56635584]
[1739392386020,0.00230929,97416.0,97415.0,0.56635584]
[1739392388373,0.08181841,97452.0,97440.0,0.36164]
[1739392388608,0.08181841,97452.0,97451.0,0.153923]
[1739392389067,0.00022387,97457.0,97456.0,0.153915]
[1739392389750,0.00022387,97457.0,97456.0,0.1541981]
[1739392389951,0.00022387,97457.0,97456.0,0.25670175]
[1739392391832,0.00122387,97457.0,97456.0,0.26270175]
[1739392393365,0.00122387,97457.0,97456.0,0.41270175]
[1739392396098,0.00122387,97457.0,97456.0,0.26270175]
[1739392398069,0.00222387,97457.0,97456.0,0.26270175]
[1739392410941,0.05152387,97457.0,97456.0,0.0062831]
[1739392411156,0.28833787,97457.0,97456.0,0.0062831]
[1739392411863,0.13442387,97457.0,97456.0,0.0062831]
[1739392414299,0.28833787,97457.0,97456.0,0.0062831]
[1739392415214,0.13442387,97457.0,97456.0,0.0062831]
[1739392415399,0.13442387,97457.0,97456.0,0.1601981]
[1739392415559,0.13442387,97457.0,97456.0,0.0062831]
[1739392416986,0.13442387,97457.0,97456.0,0.1601981]
[1739392417332,0.19992449,97464.0,97456.0,0.1601981]
[1739392417715,0.153904,97463.0,97456.0,0.1601981]
[1739392417914,0.19992449,97464.0,97456.0,0.0062831]
[1739392417915,0.153906,97462.0,97456.0,0.0062831]
[1739392418447,0.205196,97468.0,97456.0,0.0062831]
[1739392418642,0.00013225,97468.0,97456.0,0.0062831]
[1739392418757,0.153899,97467.0,97460.0,0.153908]
[1739392418962,0.153899,97467.0,97460.0,0.1541911]
[1739392419158,0.00013225,97468.0,97460.0,0.0002831]
[1739392419597,0.15402925,97468.0,97461.0,0.153907]
[1739392419792,0.15402925,97468.0,97460.0,0.0002831]
[1739392420017,0.15402925,97468.0,97460.0,0.1541901]
[1739392420222,0.0778,97467.0,97460.0,0.1541901]
[1739392420707,0.19952925,97468.0,97460.0,0.0002831]
[1739392420708,0.04863225,97468.0,97460.0,0.0002831]
[1739392420914,0.00313225,97468.0,97467.0,0.153898]
[1739392421118,0.00013225,97468.0,97467.0,0.153898]
[1739392421526,0.00013225,97468.0,97465.0,0.1539]
[1739392421682,0.00013225,97468.0,97467.0,0.153898]
[1739392421895,0.00013225,97468.0,97467.0,0.25640165]
[1739392422107,0.00013225,97468.0,97467.0,0.25840165]
[1739392422280,0.00013225,97468.0,97467.0,0.25640165]
[1739392422887,0.00013225,97468.0,97467.0,0.25740165]
[1739392423317,0.00013225,97468.0,97467.0,0.004]
[1739392423515,0.15402825,97468.0,97467.0,0.003]
[1739392423725,0.15402825,97468.0,97467.0,0.007]
[1739392424129,0.15402825,97468.0,97467.0,0.003]
[1739392424328,0.15425212,97468.0,97467.0,0.003]
[1739392424544,0.153907,97461.0,97460.0,0.0002831]
[1739392425986,0.153907,97461.0,97460.0,0.0012831]
[1739392426834,0.233107,97461.0,97460.0,0.0012831]
[1739392427832,0.233107,97461.0,97460.0,0.0002831]
[1739392428113,0.234107,97461.0,97460.0,0.0002831]
[1739392428313,0.237107,97461.0,97460.0,0.0002831]
[1739392433460,0.282207,97461.0,97460.0,0.0002831]
[1739392434480,0.53471065,97461.0,97460.0,0.0002831]
[1739392435837,0.55771065,97461.0,97460.0,0.0002831]
[1739392436059,0.1204,97453.0,97416.0,0.2054096]
[1739392436261,0.153969,97422.0,97417.0,0.10250365]
[1739392436463,0.0753,97439.0,97417.0,0.10250365]
[1739392436464,0.205288,97424.0,97417.0,0.10250365]
[1739392436594,0.0451,97431.0,97417.0,0.10250365]
[1739392436798,0.15397,97422.0,97417.0,0.10250365]
[1739392437023,0.153971,97421.0,97417.0,0.10250365]
[1739392437247,0.153972,97420.0,97416.0,0.0001066]
[1739392437462,0.153974,97419.0,97416.0,0.0001066]
[1739392437685,0.153974,97419.0,97417.0,0.001]
[1739392438640,0.153975,97418.0,97417.0,0.001]
[1739392438964,0.153975,97418.0,97417.0,0.003]
[1739392439158,0.153967,97423.0,97417.0,0.002]
[1739392439316,0.001,97420.0,97417.0,0.002]
[1739392439521,0.001,97420.0,97419.0,0.153974]
[1739392439925,0.153951,97434.0,97427.0,0.153961]
[1739392440150,0.153955,97431.0,97422.0,0.282492]
[1739392440378,0.15396,97428.0,97421.0,0.15397]
[1739392440569,0.205258,97438.0,97420.0,0.153971]
[1739392440802,0.153963,97426.0,97420.0,0.152971]
[1739392441006,0.20526,97437.0,97419.0,0.205296]
[1739392441154,0.153966,97424.0,97418.0,0.153975]
[1739392441351,0.08181841,97439.0,97417.0,0.001]
[1739392441553,0.08181841,97439.0,97417.0,0.10350365]
[1739392441756,0.08181841,97439.0,97417.0,0.10250365]
[1739392441955,0.20524,97447.0,97420.0,0.14078118]
[1739392442161,0.0781,97452.0,97440.0,0.153939]
[1739392442162,0.153928,97449.0,97440.0,0.153939]
[1739392442439,0.153928,97449.0,97422.0,0.049]
[1739392442440,0.153928,97449.0,97441.0,0.153938]
[1739392442682,0.250628,97453.0,97433.0,0.205269]
[1739392442683,0.004,97439.0,97433.0,0.205269]
[1739392442929,0.004,97439.0,97438.0,0.153944]
[1739392443084,0.153924,97451.0,97443.0,0.153935]
[1739392443289,0.014,97447.0,97443.0,0.153935]
[1739392443483,0.153931,97446.0,97438.0,0.153944]
[1739392443681,0.153931,97446.0,97439.0,0.153942]
[1739392443881,0.004,97449.0,97439.0,0.153942]
[1739392444140,0.002,97439.0,97433.0,0.153951]
[1739392444330,0.002,97439.0,97432.0,0.10250365]
[1739392444538,0.002,97439.0,97416.0,0.08094768]